bitfinex/quotes_SOLUSD_20240702
["timestamp","ask_amount","ask_price","bid_price","bid_amount"]
[1719888563819,32.2,148.45,148.42,6.7376]
[1719888565725,32.2,148.45,148.41,18.9379]
[1719888565908,20.0,148.45,148.41,18.9379]
[1719888566833,32.2,148.45,148.41,6.7379]
[1719888567836,20.0,148.45,148.41,18.9379]
[1719888568027,20.0,148.45,148.42,6.7376]
[1719888570825,20.0,148.45,148.41,100.0]
[1719888571025,20.0,148.45,148.41,112.2]
[1719888571413,20.0,148.45,148.41,118.938]
[1719888575519,20.0,148.45,148.42,6.7376]
[1719888579342,20.0,148.45,148.41,106.738]
[1719888579534,20.0,148.45,148.41,118.938]
[1719888580636,20.0,148.45,148.42,6.7375]
[1719888584662,20.0,148.45,148.41,118.938]
[1719888586484,20.0,148.45,148.41,106.738]
[1719888586756,20.0,148.45,148.41,118.938]
[1719888587962,20.0,148.46,148.42,6.7374]
[1719888588124,20.0,148.46,148.42,18.9374]
[1719888588642,20.0,148.46,148.42,12.2]
[1719888589450,26.7358,148.46,148.42,12.2]
[1719888589656,18.9363,148.45,148.4,29.046]
[1719888589859,12.2,148.45,148.4,35.7842]
[1719888590061,38.9359,148.46,148.41,18.938]
[1719888592517,26.7359,148.46,148.41,18.938]
[1719888593002,26.7359,148.46,148.37,16.8491]
[1719888593003,12.2,148.43,148.37,16.8491]
[1719888593194,18.9377,148.42,148.37,29.0491]
[1719888593393,6.7381,148.41,148.37,29.0491]
[1719888593799,12.2,148.41,148.37,29.0491]
[1719888594012,12.2,148.41,148.37,35.7889]
[1719888594201,12.2,148.42,148.37,35.7889]
[1719888594722,12.2,148.42,148.38,18.9392]
[1719888595291,15.3771,148.44,148.39,12.2]
[1719888595491,32.2,148.43,148.39,12.2]
[1719888595692,32.2,148.43,148.38,18.9392]
[1719888596618,38.9372,148.43,148.38,18.9392]
[1719888596815,6.7378,148.42,148.37,23.5889]
[1719888596999,38.9372,148.43,148.38,6.7394]
[1719888597196,38.9372,148.43,148.38,18.9394]
[1719888597401,38.9372,148.43,148.38,6.7394]
[1719888597598,38.9372,148.43,148.38,18.9394]
[1719888598331,18.9378,148.42,148.37,23.5888]
[1719888598609,18.9378,148.42,148.37,35.7888]
[1719888599213,18.9378,148.42,148.37,23.5888]
[1719888599415,12.2,148.4,148.37,16.8491]
[1719888600225,18.9381,148.41,148.37,16.8491]
[1719888600595,12.2,148.39,148.35,18.9406]
[1719888601321,6.7377,148.42,148.36,12.2]
[1719888601616,12.2,148.4,148.36,12.2]
[1719888601816,20.0,148.41,148.37,6.7399]
[1719888602018,12.2,148.4,148.37,6.7399]
[1719888604125,32.2,148.41,148.37,6.7399]
[1719888606812,32.2,148.41,148.36,35.7907]
[1719888607011,12.2,148.4,148.36,23.5907]
[1719888607315,12.2,148.39,148.36,23.5907]
[1719888607516,12.2,148.4,148.36,23.5907]
[1719888608612,12.2,148.4,148.36,16.8505]
[1719888609619,20.0,148.41,148.37,6.7398]
[1719888609816,32.2,148.41,148.37,6.7398]
[1719888610020,12.2,148.4,148.36,123.5907]
[1719888610620,12.2,148.4,148.36,135.7907]
[1719888610821,20.0,148.41,148.37,6.7398]
[1719888611122,32.2,148.41,148.37,6.7398]
[1719888612613,32.2,148.41,148.36,135.7907]
[1719888613033,32.2,148.41,148.37,6.7398]
[1719888614934,32.2,148.41,148.36,135.7907]
[1719888617322,15.3771,148.44,148.4,12.2]
[1719888617529,6.7359,148.46,148.41,18.9379]
[1719888617732,18.9359,148.46,148.42,12.2]
[1719888617943,18.9359,148.46,148.42,12.55181713]
[1719888618153,6.7359,148.46,148.42,12.55181713]
[1719888618441,6.7363,148.45,148.41,13.33182822]
[1719888618625,6.7363,148.45,148.41,12.2]
[1719888618825,6.7367,148.44,148.41,12.2]
[1719888619031,6.7367,148.44,148.4,12.2]
[1719888619430,20.0,148.43,148.4,12.2]
[1719888620140,20.0,148.43,148.4,18.9384]
[1719888620338,20.0,148.44,148.41,12.2]
[1719888620635,20.0,148.44,148.42,112.2]
[1719888620837,6.7358,148.46,148.42,113.54732383]
[1719888621032,20.0,148.45,148.42,113.54732383]
[1719888621240,20.0,148.45,148.42,112.2]
[1719888622633,26.7358,148.46,148.42,112.2]
[1719888622820,26.7358,148.46,148.43,12.2]
[1719888625341,26.7358,148.46,148.42,12.2]
[1719888628239,26.7358,148.46,148.41,23.5824]
[1719888628421,26.7358,148.46,148.42,12.2]
[1719888629243,20.0,148.46,148.42,12.2]
[1719888629429,26.7356,148.47,148.42,18.9374]
[1719888629740,6.7359,148.46,148.42,12.2]
[1719888630042,20.0,148.45,148.42,12.2]
[1719888630429,20.0,148.45,148.43,12.2]
[1719888633234,6.7367,148.44,148.41,12.2]
[1719888633541,6.7367,148.44,148.39,6.7389]
[1719888633742,6.7367,148.44,148.4,12.2]
[1719888634138,38.9364,148.45,148.4,12.2]
[1719888635648,6.7367,148.44,148.4,12.2]
[1719888636926,38.9364,148.45,148.4,12.2]
[1719888637349,38.9364,148.45,148.4,6.7385]
[1719888637528,38.9364,148.45,148.4,18.9385]
[1719888638426,38.9364,148.45,148.4,6.7385]
[1719888639053,38.9364,148.45,148.4,18.9385]
[1719888640238,12.2,148.44,148.4,6.7385]
[1719888640923,32.2,148.43,148.38,16.8484]
[1719888641121,12.2,148.43,148.39,12.2]
[1719888641332,12.2,148.43,148.38,16.8484]
[1719888641533,18.9371,148.43,148.39,12.2]
[1719888642142,12.2,148.43,148.39,12.2]
[1719888642951,12.2,148.43,148.39,18.9389]
[1719888644044,12.2,148.43,148.39,6.7389]
[1719888644653,12.2,148.44,148.4,6.7384]
[1719888644832,20.0,148.43,148.41,6.7379]
[1719888645154,32.2,148.45,148.42,6.7375]
[1719888645358,20.0,148.45,148.42,6.7375]
[1719888648347,20.0,148.46,148.43,6.7371]
[1719888648532,32.2,148.47,148.43,6.7371]
[1719888649130,15.8858857,148.48,148.44,106.7367]
[1719888649331,28.0858857,148.48,148.44,106.7367]
[1719888649537,15.8858857,148.48,148.44,108.08158515]
[1719888649737,15.8858857,148.48,148.44,120.28158515]
[1719888650139,15.8858857,148.48,148.44,113.54488515]
[1719888650337,20.0,148.47,148.44,113.54488515]
[1719888650739,20.0,148.47,148.44,120.28148515]
[1719888650946,15.8858857,148.48,148.44,120.28148515]
[1719888651547,15.8858857,148.48,148.44,113.54488515]
[1719888652546,34.8211857,148.48,148.44,100.0]
[1719888653153,22.6211857,148.48,148.44,100.0]
[1719888653337,34.8211857,148.48,148.44,100.0]
[1719888654345,34.8211857,148.48,148.43,12.2]
[1719888655241,34.8211857,148.48,148.43,19.68729936]
[1719888655643,34.8211857,148.48,148.43,18.9371]
[1719888656145,12.2,148.47,148.43,6.7371]
[1719888657660,15.8858857,148.48,148.44,6.7365]
[1719888657834,15.8858857,148.48,148.44,20.28360369]
[1719888658039,0.8381857,148.48,148.45,6.7362]
[1719888658235,20.8381857,148.48,148.45,6.7362]
[1719888658632,20.8381857,148.48,148.44,108.08360369]
[1719888658962,20.8381857,148.48,148.45,18.9362]
[1719888658963,0.8381857,148.48,148.45,18.9362]
[1719888659341,0.8381857,148.48,148.45,12.2]
[1719888659543,0.8381857,148.48,148.45,18.936]
[1719888659846,0.8381857,148.48,148.45,20.28302598]
[1719888660246,0.8381857,148.48,148.45,13.54702598]
[1719888661437,0.8381857,148.48,148.45,20.28322598]
[1719888662338,0.8381857,148.48,148.45,18.9362]
[1719888663442,0.8381857,148.48,148.45,12.2]
[1719888663960,0.8381857,148.48,148.45,18.9362]
[1719888665053,0.8381857,148.48,148.47,12.2]
[1719888666343,0.8381857,148.48,148.46,135.7747]
[1719888667742,0.8381857,148.48,148.46,123.5747]
[1719888667944,0.8381857,148.48,148.46,135.7747]
[1719888669243,0.8381857,148.48,148.47,12.2]
[1719888669751,0.8381857,148.48,148.47,18.9353]
[1719888673957,0.8381857,148.48,148.46,116.8391]
[1719888673958,0.8381857,148.48,148.46,16.8391]
[1719888674158,0.8381857,148.48,148.46,35.7746]
[1719888674570,0.8381857,148.48,148.47,6.7353]
[1719888675065,0.8381857,148.48,148.47,18.9353]
[1719888676370,0.8381857,148.48,148.47,6.7353]
[1719888676564,0.8381857,148.48,148.47,18.9353]
[1719888676967,0.8381857,148.48,148.47,6.7353]
[1719888677158,0.8381857,148.48,148.46,35.7748]
[1719888677356,0.8381857,148.48,148.47,6.7353]
[1719888677556,0.8381857,148.48,148.47,18.9353]
[1719888678467,0.8381857,148.48,148.47,6.7353]
[1719888679665,0.8381857,148.48,148.47,18.9353]
[1719888684275,0.8381857,148.48,148.47,12.2]
[1719888685877,0.8381857,148.48,148.47,18.9353]
[1719888689481,0.8381857,148.48,148.47,6.7353]
[1719888691664,0.8381857,148.48,148.47,18.9353]
[1719888693155,0.8381857,148.48,148.47,6.7353]
[1719888699190,0.8381857,148.48,148.46,23.5747]
[1719888700091,0.8381857,148.48,148.43,105.25381888]
[1719888700092,12.2,148.47,148.43,23.579]
[1719888700696,12.2,148.47,148.44,6.7366]
[1719888700867,13.0381857,148.48,148.44,6.7366]
[1719888701280,13.0381857,148.48,148.45,6.736]
[1719888702663,13.0381857,148.48,148.44,18.9366]
[1719888702867,13.0381857,148.48,148.44,6.7366]
[1719888704477,0.8381857,148.48,148.45,23.576]
[1719888704681,20.8381857,148.48,148.45,23.576]
[1719888705192,33.0381857,148.48,148.45,23.576]
[1719888705493,33.0381857,148.48,148.45,16.8399]
[1719888706386,20.8381857,148.48,148.45,23.5757]
[1719888706569,0.8381857,148.48,148.45,16.8399]
[1719888706770,20.8381857,148.48,148.45,16.8399]
[1719888707081,33.0381857,148.48,148.45,16.8399]
[1719888707574,20.8381857,148.48,148.45,29.0399]
[1719888707774,0.8381857,148.48,148.45,29.0399]
[1719888708790,0.8381857,148.48,148.46,12.2]
[1719888709896,0.8381857,148.48,148.47,6.7353]
[1719888710097,0.8381857,148.48,148.47,12.2]
[1719888711479,0.8381857,148.48,148.47,18.9353]
[1719888712175,0.8381857,148.48,148.47,6.7353]
[1719888712795,0.8381857,148.48,148.47,18.9353]
[1719888714282,0.8381857,148.48,148.47,118.9353]
[1719888714477,7.03063158,148.54,148.5,100.0]
[1719888714777,6.2583,148.56,148.52,12.2]
[1719888714987,6.2583,148.56,148.52,18.933]
[1719888715184,18.4583,148.56,148.51,18.9334]
[1719888715496,25.1896,148.56,148.51,18.9334]
[1719888715803,25.1896,148.56,148.51,12.2]
[1719888715977,18.4583,148.56,148.51,12.2]
[1719888716185,18.9318,148.55,148.5,12.2]
[1719888716686,18.9318,148.55,148.5,18.9338]
[1719888716889,12.2,148.55,148.51,12.2]
[1719888717483,18.9318,148.55,148.51,12.2]
[1719888718006,12.2,148.55,148.51,18.9335]
[1719888718419,12.2,148.55,148.5,6.7338]
[1719888718715,18.9318,148.55,148.5,18.9338]
[1719888719498,6.7331,148.52,148.5,12.2]
[1719888719806,18.9336,148.51,148.46,16.8394]
[1719888720110,12.2,148.51,148.46,35.775]
[1719888721195,12.2,148.51,148.47,6.7353]
[1719888721395,12.2,148.51,148.47,18.9353]
[1719888723781,18.9332,148.52,148.47,18.9353]
[1719888723986,20.0,148.51,148.48,6.7348]
[1719888724304,20.0,148.51,148.47,18.9353]
[1719888725804,32.2,148.51,148.47,18.9353]
[1719888726022,32.2,148.51,148.47,6.7353]
[1719888730182,32.2,148.51,148.48,6.7347]
[1719888730499,16.6196,148.54,148.49,12.2]
[1719888730701,16.6196,148.54,148.5,18.9335]
[1719888734287,35.5519,148.54,148.49,6.7343]
[1719888734483,23.3519,148.54,148.5,12.2]
[1719888734683,16.6196,148.54,148.5,18.9338]
[1719888735687,23.352,148.54,148.48,116.8365]
[1719888735891,35.552,148.54,148.5,12.2]
[1719888736598,23.352,148.54,148.5,12.2]
[1719888736798,28.8196,148.54,148.5,18.934]
[1719888737420,35.5517,148.54,148.5,12.2]
[1719888737715,35.5517,148.54,148.49,18.9343]
[1719888739710,12.2,148.53,148.49,18.9343]
[1719888740813,12.2,148.53,148.5,6.7339]
[1719888741007,28.8196,148.54,148.5,6.7339]
[1719888742189,28.8196,148.54,148.5,18.9339]
[1719888742605,25.1897,148.56,148.51,18.9334]
[1719888742802,20.0,148.55,148.51,18.9334]
[1719888743998,26.7317,148.55,148.51,12.2]
[1719888747723,20.0,148.55,148.47,116.8379]
[1719888747927,32.2,148.55,148.5,12.2]
[1719888748426,6.7326,148.54,148.5,12.2]
[1719888749121,32.2,148.55,148.5,12.2]
[1719888749122,38.9318,148.55,148.5,12.2]
[1719888749507,38.9318,148.55,148.51,12.2]
[1719888750012,38.9318,148.55,148.52,0.60636192]
[1719888750525,6.7321,148.54,148.51,12.2]
[1719888750904,6.7321,148.54,148.5,12.2]
[1719888751603,6.7321,148.54,148.49,123.5699]
[1719888751905,6.7321,148.54,148.5,12.2]
[1719888754726,6.7321,148.54,148.51,12.2]
[1719888755829,26.7318,148.55,148.51,12.2]
[1719888756008,20.0,148.55,148.52,12.2]
[1719888756214,20.0,148.55,148.51,12.2]
[1719888757124,20.0,148.55,148.52,12.2]
[1719888757831,20.0,148.55,148.53,12.2]
[1719888758732,20.0,148.55,148.53,9.5105]
[1719888759036,6.2583,148.56,148.53,9.5105]
[1719888759219,21.9835,148.58,148.54,12.2]
[1719888759533,15.253,148.58,148.54,18.932]
[1719888760127,21.9833,148.58,148.54,12.2]
[1719888760513,20.0,148.57,148.55,12.2]
[1719888760713,24.9718,148.6,148.55,12.2]
[1719888760935,20.0,148.59,148.55,12.2]
[1719888761113,26.7302,148.59,148.55,12.2]
[1719888764334,6.7305,148.58,148.53,123.5638]
[1719888764637,6.7305,148.58,148.54,12.2]
[1719888766333,26.73,148.59,148.54,18.9321]
[1719888766524,38.93,148.59,148.54,18.9321]
[1719888768636,26.73,148.59,148.55,12.2]
[1719888772444,20.0,148.59,148.55,116.8288]
[1719888772649,20.0,148.59,148.57,12.2]
[1719888772854,20.0,148.59,148.57,18.9307]
[1719888773149,20.0,148.6,148.57,18.9307]
[1719888774156,20.0,148.6,148.58,18.9303]
[1719888774357,20.0,148.6,148.58,12.2]
[1719888775436,20.0,148.6,148.57,12.2]
[1719888776039,6.7291,148.61,148.58,12.2]
[1719888776260,20.0,148.6,148.58,12.2]
[1719888777768,20.0,148.61,148.58,12.2]
[1719888778060,20.0,148.61,148.55,12.2]
[1719888778061,12.2,148.6,148.55,12.2]
[1719888778262,18.9302,148.59,148.55,12.2]
[1719888778842,6.7302,148.59,148.55,12.2]
[1719888783346,6.7302,148.59,148.54,6.7321]
[1719888783558,6.7302,148.59,148.55,12.2]
[1719888783861,18.9302,148.59,148.55,12.2]
[1719888785057,18.9302,148.59,148.54,6.7321]
[1719888785257,18.9302,148.59,148.55,12.2]
[1719888786351,12.2,148.59,148.53,16.8311]
[1719888786549,12.2,148.59,148.55,12.2]
[1719888787165,12.2,148.59,148.55,18.9316]
[1719888787566,25.1276,148.59,148.54,6.7321]
[1719888787872,25.1276,148.59,148.54,18.9321]
[1719888788077,6.1976,148.59,148.56,6.7312]
[1719888788373,6.1976,148.59,148.55,18.9315]
[1719888788951,6.1976,148.59,148.56,12.2]
[1719888789151,6.1976,148.59,148.56,18.9311]
[1719888789374,6.1976,148.59,148.56,12.2]
[1719888792374,47.5089,148.61,148.56,12.2]
[1719888792579,35.3089,148.61,148.58,12.2]
[1719888794469,35.3089,148.61,148.58,18.9302]
[1719888794669,35.3089,148.61,148.58,6.7302]
[1719888794880,35.3089,148.61,148.58,12.2]
[1719888795882,35.3089,148.61,148.57,35.7573]
[1719888799261,35.3089,148.61,148.57,23.5573]
[1719888799580,35.3089,148.61,148.57,35.7573]
[1719888804183,15.3089,148.61,148.58,18.9303]
[1719888804386,15.3089,148.61,148.58,12.2]
[1719888805185,15.3089,148.61,148.57,23.5572]
[1719888805579,15.3089,148.61,148.58,12.2]
[1719888806988,15.3089,148.61,148.58,18.9303]
[1719888808065,6.7295,148.6,148.58,12.2]
[1719888808267,6.7302,148.59,148.5,100.0]
[1719888808466,18.9302,148.59,148.54,29.0296]
[1719888808688,6.7304,148.58,148.54,29.0296]
[1719888808876,6.7304,148.58,148.54,12.2]
[1719888809184,18.93,148.59,148.54,18.9321]
[1719888809388,18.93,148.59,148.55,12.2]
[1719888809885,6.7303,148.58,148.55,12.2]
[1719888810469,6.73,148.59,148.55,12.2]
[1719888810669,18.93,148.59,148.55,12.2]
[1719888810995,18.9302,148.59,148.55,12.2]
[1719888811294,18.9294,148.6,148.55,18.9316]
[1719888811505,20.0,148.59,148.55,18.9316]
[1719888812303,26.7299,148.59,148.55,12.2]
[1719888812702,20.0,148.59,148.55,18.9316]
[1719888812995,20.0,148.59,148.57,12.2]
[1719888813200,26.7295,148.6,148.57,12.2]
[1719888813584,20.0,148.6,148.57,12.2]
[1719888813895,22.038,148.61,148.57,12.2]
[1719888814091,15.3089,148.61,148.58,12.2]
[1719888814392,22.0379,148.61,148.58,12.2]
[1719888814701,22.0379,148.61,148.56,6.7311]
[1719888814702,22.0379,148.61,148.57,12.2]
[1719888814995,6.7294,148.6,148.57,12.2]
[1719888815372,6.7294,148.6,148.55,123.5601]
[1719888815572,6.7294,148.6,148.57,12.2]
[1719888815772,22.038,148.61,148.58,12.2]
[1719888816672,22.038,148.61,148.57,12.2]
[1719888816872,6.7286,148.62,148.58,13.54371892]
[1719888817084,20.0,148.61,148.59,12.2]
[1719888818086,6.7286,148.62,148.59,12.2]
[1719888820470,7.4651857,148.63,148.59,12.2]
[1719888820677,14.1932857,148.63,148.59,12.2]
[1719888821298,6.7285,148.62,148.59,12.2]
[1719888821591,14.1933857,148.63,148.59,12.2]
[1719888822280,7.5663857,148.63,148.59,100.0]
[1719888822484,7.5663857,148.63,148.6,12.2]
[1719888823297,7.5663857,148.63,148.59,100.0]
[1719888823495,7.5663857,148.63,148.59,112.2]
[1719888825396,7.5663857,148.63,148.6,12.2]
[1719888828076,0.8381857,148.63,148.6,12.2]
[1719888828383,7.5662857,148.63,148.6,12.2]
[1719888828898,7.5662857,148.63,148.61,12.2]
[1719888829100,7.5662857,148.63,148.6,12.2]
[1719888832198,6.7285,148.62,148.6,12.2]
[1719888832380,6.7285,148.62,148.59,112.2]
[1719888832775,0.8381857,148.63,148.61,12.2]
[1719888833381,0.8381857,148.63,148.6,18.9294]
[1719888834296,0.8381857,148.63,148.59,123.5537]
[1719888834485,0.8381857,148.63,148.6,12.2]
[1719888834890,0.8381857,148.63,148.61,18.9286]
[1719888835092,0.8381857,148.63,148.61,118.9286]
[1719888835593,0.8381857,148.63,148.61,112.2]
[1719888836476,0.8381857,148.63,148.61,12.2]
[1719888838087,0.8381857,148.63,148.61,18.9289]
[1719888839088,0.8381857,148.63,148.61,118.9289]
[1719888839699,0.8381857,148.63,148.61,112.2]
[1719888842478,0.8381857,148.63,148.59,23.5539]
[1719888842683,0.8381857,148.63,148.6,12.2]
[1719888844209,0.8381857,148.63,148.61,12.2]
[1719888847895,0.8381857,148.63,148.59,23.5538]
[1719888848101,0.8381857,148.63,148.6,12.2]
[1719888848394,0.8381857,148.63,148.61,12.2]
[1719888848602,0.8381857,148.63,148.57,5.4915431]
[1719888848603,0.8381857,148.63,148.58,100.0]
[1719888848907,0.8381857,148.63,148.6,100.0]
[1719888849093,0.8381857,148.63,148.61,12.2]
[1719888850005,0.8381857,148.63,148.62,118.9285]
[1719888851409,0.8381857,148.63,148.62,112.2]
[1719888854590,0.8381857,148.63,148.62,100.0]
[1719888854792,0.8381857,148.63,148.6,123.5522]
[1719888855006,0.8381857,148.63,148.6,135.7522]
[1719888855215,0.8381857,148.63,148.61,12.2]
[1719888855915,0.8381857,148.63,148.61,18.9289]
[1719888858712,0.8381857,148.63,148.62,106.7285]
[1719888858931,0.8381857,148.63,148.62,118.9285]
[1719888864026,0.8381857,148.63,148.62,6.7285]
[1719888864200,0.8381857,148.63,148.62,18.9285]
[1719888864400,0.8381857,148.63,148.62,106.7285]
[1719888864599,16.4399,148.68,148.62,106.7285]
[1719888864600,16.4399,148.68,148.66,6.7263]
[1719888865200,16.4399,148.68,148.65,18.927]
[1719888865811,16.4399,148.68,148.64,23.5455]
[1719888866025,28.6399,148.68,148.64,16.818]
[1719888866220,28.6399,148.68,148.64,23.5456]
[1719888866399,35.3657,148.68,148.64,16.818]
[1719888866594,28.6399,148.68,148.64,16.818]
[1719888867119,16.4399,148.68,148.64,35.7453]
[1719888867633,16.4399,148.68,148.65,6.7271]
[1719888869120,16.4399,148.68,148.65,18.927]
[1719888870004,16.4399,148.68,148.66,6.7266]
[1719888870204,16.4399,148.68,148.66,18.9266]
[1719888870430,16.4399,148.68,148.66,6.7266]
[1719888870918,16.4399,148.68,148.65,18.927]
[1719888871109,16.4399,148.68,148.64,23.5455]
[1719888871302,16.4399,148.68,148.64,35.7455]
[1719888871822,16.4399,148.68,148.64,29.018]
[1719888872025,16.4399,148.68,148.65,6.7271]
[1719888874108,16.4399,148.68,148.65,18.9271]
[1719888875334,16.4399,148.68,148.61,16.8223]
[1719888875505,12.2,148.66,148.62,6.7284]
[1719888876021,38.9266,148.67,148.62,18.9284]
[1719888876407,6.727,148.66,148.62,12.2]
[1719888876629,18.927,148.66,148.61,23.5511]
[1719888876932,12.2,148.62,148.54,12.2]
[1719888877229,15.4823,148.64,148.55,16.8289]
[1719888877230,12.2,148.59,148.55,16.8289]
[1719888877932,18.9299,148.59,148.55,16.8289]
[1719888878103,12.2,148.59,148.55,16.8289]
[1719888878804,12.2,148.59,148.55,23.5604]
[1719888879010,15.4823,148.64,148.56,12.2]
[1719888879211,26.7282,148.63,148.57,18.9307]
[1719888879405,26.7282,148.63,148.55,116.8289]
[1719888879406,6.7286,148.62,148.58,12.2]
[1719888879610,20.0,148.61,148.58,12.2]
[1719888879825,20.0,148.61,148.57,12.2]
[1719888880231,32.2,148.61,148.56,18.9311]
[1719888880614,20.0,148.61,148.56,18.9311]
[1719888880823,12.2,148.6,148.53,100.0]
[1719888881037,18.9303,148.59,148.54,12.2]
[1719888881911,6.7305,148.58,148.54,12.2]
[1719888882413,18.93,148.59,148.54,12.2]
[1719888882721,18.9305,148.58,148.53,6.7326]
[1719888882911,18.9305,148.58,148.53,18.9326]
[1719888883231,12.2,148.57,148.53,18.9326]
[1719888883626,18.9305,148.58,148.53,18.9326]
[1719888884030,12.2,148.58,148.54,18.9321]
[1719888884214,28.5089,148.59,148.54,18.9321]
[1719888884418,28.5089,148.59,148.54,6.7321]
[1719888884720,28.5089,148.59,148.54,18.9321]
[1719888885041,35.2392,148.59,148.54,12.2]
[1719888885335,23.0389,148.59,148.54,12.2]
[1719888885528,18.9305,148.58,148.54,12.2]
[1719888885729,6.7305,148.58,148.54,12.2]
[1719888885924,6.7305,148.58,148.51,16.8327]
[1719888885925,20.0,148.57,148.51,16.8327]
[1719888886133,26.7312,148.57,148.53,12.2]
[1719888886310,32.2,148.57,148.51,23.5661]
[1719888886513,32.2,148.57,148.52,12.2]
[1719888887614,6.7315,148.56,148.52,12.2]
[1719888888025,18.9315,148.56,148.52,12.2]
[1719888888525,6.732,148.55,148.5,6.7339]
[1719888888727,6.732,148.55,148.51,12.2]
[1719888889125,18.932,148.55,148.5,6.7339]
[1719888889315,18.932,148.55,148.5,18.9339]
[1719888889639,18.932,148.55,148.5,12.2]
[1719888889640,6.7321,148.54,148.5,12.2]
[1719888890140,18.9321,148.54,148.49,18.9343]
[1719888890335,12.2,148.54,148.49,18.9343]
[1719888890933,12.2,148.54,148.5,6.7339]
[1719888891834,12.2,148.55,148.51,6.7335]
[1719888892154,18.9313,148.56,148.51,18.9335]
[1719888892745,6.7317,148.55,148.51,12.2]
[1719888892951,18.9317,148.55,148.5,35.7683]
[1719888893122,6.7322,148.54,148.5,29.0345]
[1719888893329,18.9318,148.55,148.5,35.7684]
[1719888894848,12.2,148.55,148.5,129.0345]
[1719888895038,18.9312,148.57,148.53,12.2]
[1719888895240,20.0,148.56,148.53,12.2]
[1719888895637,20.0,148.56,148.52,6.733]
[1719888895953,20.0,148.56,148.53,12.2]
[1719888896747,26.7314,148.56,148.52,12.2]
[1719888897246,20.0,148.56,148.52,18.933]
[1719888897447,26.7312,148.56,148.52,12.2]
[1719888899951,20.0,148.56,148.52,12.2]
[1719888900159,6.7318,148.55,148.52,12.2]
[1719888901035,6.7318,148.55,148.51,12.2]
[1719888901744,7.02120007,148.58,148.53,12.2]
[1719888901950,20.0,148.57,148.54,12.2]
[1719888903161,26.7308,148.57,148.54,12.2]
[1719888904460,7.01631993,148.6,148.56,112.2]
[1719888904843,38.4448,148.65,148.57,6.7305]
[1719888905058,6.7282,148.63,148.58,6.7302]
[1719888905263,12.2,148.64,148.56,112.2]
[1719888905842,6.7296,148.6,148.58,12.2]
[1719888906044,6.7291,148.61,148.58,12.2]
[1719888908457,6.7291,148.61,148.59,12.2]
[1719888909167,26.7285,148.63,148.59,12.2]
[1719888909370,28.64724101,148.65,148.6,12.2]
[1719888909569,6.7281,148.63,148.58,106.7302]
[1719888909746,6.7281,148.63,148.6,12.2]
[1719888912269,6.7272,148.65,148.6,100.0]
[1719888912461,12.2,148.68,148.63,12.2]
[1719888912990,12.2,148.68,148.64,12.2]
[1719888913171,6.7266,148.67,148.64,12.2]
[1719888914949,6.7259,148.68,148.64,112.2]
[1719888916376,6.7259,148.68,148.65,12.2]
[1719888918079,6.7259,148.68,148.64,100.0]